[Event "Bijnor Open 2024"]
[Site "Bijnor"]
[Date "2024.03.20"]
[Round "7.6"]
[White "Vatsal Singla"]
[Black "Mahindrakar Indrajeet"]
[Result "0-1"]
[ECO "C01"]
[WhiteElo "1795"]
[BlackElo "2136"]
[Annotator "RC"]
[PlyCount "132"]
[EventDate "2024.03.17"]
[EventCountry "IND"]
[SourceTitle "playchess.com"]
[Source "ChessBase"]
[SourceQuality "1"]
[TimeControl "5400+30"]

1. e4 {[%emt 0:01:34]} e6 {[%emt 0:01:56]} 2. d4 {[%emt 0:00:25]} d5 {[%emt 0:00:09]} 3. Nc3 {[%emt 0:00:10]} Bb4 {[%emt 0:00:20]} 4. exd5 {[%emt 0:00:06]} exd5 {[%emt 0:00:07]} 5. Bd3 {[%emt 0:00:05]} Ne7 {[%emt 0:00:22]} 6. Qh5 {[%emt 0:02:00]} Be6 {[%emt 0:00:40]} 7. Nge2 {[%emt 0:01:09]} Nbc6 {[%emt 0:00:52]} 8. Nf4 {[%emt 0:07:02]} Qd7 {[%emt 0:02:27]} 9. O-O {[%emt 0:10:44]} Nxd4 {[%emt 0:31:25]} 10. Be3 {[%emt 0:01:23]} Bxc3 {[%emt 0:17:27]} 11. bxc3 {[%emt 0:00:14]} Ndf5 {[%emt 0:00:40]} 12. Nxe6 {[%emt 0:10:10]} g6 {[%emt 0:09:03]} 13. Nxc7+ {[%emt 0:23:01]} Qxc7 {[%emt 0:00:22]} 14. Bb5+ {[%emt 0:03:11]} Nc6 {[%emt 0:01:00]} 15. Qh3 {[%emt 0:08:59]} O-O {[%emt 0:02:01]} 16. Bg5 {[%emt 0:01:01]} f6 {[%emt 0:05:56]} 17. Bd2 {[%emt 0:05:39]} Rad8 {[%emt 0:02:54]} 18. Bd3 {[%emt 0:00:50]} Nd6 {[%emt 0:00:52]} 19. Rfe1 {[%emt 0:05:56]} Qd7 {[%emt 0:04:43]} 20. Qf3 {[%emt 0:01:45]} Qf7 {[%emt 0:05:03]} 21. Bf4 {[%emt 0:01:55]} Rfe8 {[%emt 0:04:06]} 22. h4 {[%emt 0:01:07]} Ne5 {[%emt 0:02:42]} 23. Qh3 {[%emt 0:01:46]} Qd7 {[%emt 0:01:23]} 24. Qxd7 {[%emt 0:06:18]} Rxd7 {[%emt 0:00:09]} 25. Re2 {[%emt 0:00:26]} Rde7 {[%emt 0:00:57]} 26. Bg3 {[%emt 0:03:47]} Kf7 {[%emt 0:01:15]} 27. h5 {[%emt 0:00:46]} gxh5 {[%emt 0:01:51]} 28. Kf1 {[%emt 0:00:45]} Nxd3 {[%emt 0:01:51]} 29. Rxe7+ {[%emt 0:00:18]} Kxe7 {[%emt 0:00:01]} 30. Bxd6+ {[%emt 0:00:47]} Kxd6 {[%emt 0:00:02]} 31. cxd3 {[%emt 0:00:02]} Rc8 {[%emt 0:01:02]} 32. Rb1 {[%emt 0:01:22]} b6 {[%emt 0:00:11]} 33. Rb3 {[%emt 0:00:09]} Rc5 {[%emt 0:00:34]} 34. Ke2 {[%emt 0:00:36]} d4 {[%emt 0:00:30]} 35. c4 {[%emt 0:00:33]} Re5+ {[%emt 0:01:39]} 36. Kf3 {[%emt 0:00:22]} Rf5+ {[%emt 0:00:24]} 37. Ke2 {[%emt 0:00:14]} h4 {[%emt 0:00:46]} 38. Ra3 {[%emt 0:00:56]} a5 {[%emt 0:00:22]} 39. Rb3 {[%emt 0:00:02]} Kc6 {[%emt 0:00:06]} 40. Rb1 {[%emt 0:00:16]} Rh5 {[%emt 0:00:28]} 41. Kf3 {[%emt 0:02:13]} Rf5+ {[%emt 0:00:57]} 42. Ke2 {[%emt 0:00:10]} h3 {[%emt 0:00:41]} 43. gxh3 {[%emt 0:00:55]} Rh5 {[%emt 0:00:01]} 44. Rh1 {[%emt 0:00:48]} Kc5 {[%emt 0:00:01]} 45. a3 {[%emt 0:00:03]} b5 {[%emt 0:00:17]} 46. Rc1 {[%emt 0:00:53]} b4 {[%emt 0:01:42]} 47. axb4+ {[%emt 0:00:02]} Kxb4 {[%emt 0:00:30]} 48. Kd2 {[%emt 0:00:39]} Rf5 {[%emt 0:00:42]} 49. Rf1 {[%emt 0:00:26]} a4 {[%emt 0:00:46]} 50. Kc2 {[%emt 0:00:05]} a3 {[%emt 0:00:16]} 51. f4 {[%emt 0:00:27]} Ka4 {[%emt 0:00:27]} 52. h4 {[%emt 0:00:30]} Rh5 {[%emt 0:00:17]} 53. Rh1 {[%emt 0:00:03]} f5 {[%emt 0:00:20]} 54. Rh2 {[%emt 0:00:14]} Rh6 {[%emt 0:00:08]} 55. h5 {[%emt 0:01:17]} Rb6 {[%emt 0:00:00]} 56. Kc1 {[%emt 0:00:16]} Kb3 {[%emt 0:00:34]} 57. Kb1 {[%emt 0:00:36]} Kc3+ {[%emt 0:00:16]} 58. Ka2 {[%emt 0:00:08]} Kxd3 {[%emt 0:00:15]} 59. c5 {[%emt 0:00:55]} Rc6 {[%emt 0:00:14]} 60. Kxa3 {[%emt 0:00:18]} Rxc5 {[%emt 0:00:19]} 61. Kb4 {[%emt 0:00:40]} Rc2 {[%emt 0:01:14]} 62. Rh1 {[%emt 0:00:08]} Ke3 {[%emt 0:00:26]} 63. Rg1 {[%emt 0:00:51]} d3 {[%emt 0:01:45]} 64. Rg7 {[%emt 0:00:43]} h6 {[%emt 0:00:24]} 65. Rg6 {[%emt 0:00:07]} d2 {[%emt 0:00:10]} 66. Rd6 {[%emt 0:00:06]} Rc1 {[%emt 0:00:11]} 0-1

[Event "Bijnor Open 2024"]
[Site "Bijnor"]
[Date "2024.03.20"]
[Round "7.7"]
[White "Vrashank Chouhan"]
[Black "Royal, Shreyas"]
[Result "0-1"]
[ECO "D35"]
[WhiteElo "2330"]
[BlackElo "2457"]
[Annotator "TA"]
[PlyCount "116"]
[EventDate "2024.03.17"]
[EventCountry "IND"]
[SourceTitle "playchess.com"]
[Source "ChessBase"]
[SourceQuality "1"]
[TimeControl "5400+30"]

{[%evp 41,116,62,76,78,87,80,87,81,114,64,170,175,155,97,104,97,92,-86,-88,-75,-84,-170,-177,-151,-157,-171,-157,-147,-147,-165,-159,-147,-85,-158,-122,-216,-214,-348,-198,-317,-303,-304,-212,-226,-219,-272,-129,-440,-481,-445,-447,-587,-579,-573,-405,-531,-276,-994,-971,-757,-279,-285,-271,-295,-309,-422,-411,-450,-450,-508,-507,-578,-579,-585,-545,-545,-537]} 1. d4 {[%emt 0:00:41]} d5 {[%emt 0:00:23]} 2. c4 {[%emt 0:00:51]} e6 {[%emt 0:00:17]} 3. Nc3 {[%emt 0:00:03]} Nf6 {[%emt 0:00:21]} 4. Nf3 {[%emt 0:00:10]} Be7 {[%emt 0:01:18]} 5. cxd5 {[%emt 0:00:07]} exd5 {[%emt 0:01:00]} 6. h3 {[%emt 0:00:07]} c6 {[%emt 0:03:15]} 7. Bf4 {[%emt 0:00:41]} Nbd7 {[%emt 0:03:12]} 8. e3 {[%emt 0:00:25]} O-O {[%emt 0:02:04]} 9. Bd3 {[%emt 0:00:05]} Re8 {[%emt 0:02:53]} 10. O-O {[%emt 0:00:08]} Bf8 {[%emt 0:15:37]} 11. Qc2 {[%emt 0:04:29]} h6 {[%emt 0:11:58]} 12. Rab1 {[%emt 0:13:08]} a5 {[%emt 0:07:29]} 13. Bh2 {[%emt 0:11:33]} Nb6 {[%emt 0:06:43]} 14. Ne5 {[%emt 0:01:11]} Bd6 {[%emt 0:08:10]} 15. f4 {[%emt 0:03:41]} c5 {[%emt 0:03:20]} 16. b3 {[%emt 0:05:01]} cxd4 {[%emt 0:01:05]} 17. exd4 {[%emt 0:00:23]} Bd7 {[%emt 0:04:44]} 18. Qf2 {[%emt 0:13:32]} Bc6 {[%emt 0:01:07]} 19. Rbc1 {[%emt 0:07:39]} Rc8 {[%emt 0:02:55]} 20. Bg3 {[%emt 0:05:17]} Nbd7 {[%emt 0:07:48]} 21. Bh4 {[%emt 0:02:42]} Be7 {[%emt 0:00:02]} 22. Bf5 {[%emt 0:02:34]} Rc7 {[%emt 0:05:07]} 23. Qe2 {[%emt 0:03:25]} g6 {[%emt 0:04:48]} 24. Bb1 {[%emt 0:04:29]} Nb8 {[%emt 0:03:17]} 25. Nb5 {[%emt 0:05:35]} ({White should play} 25. Qd3 $16 {[%cal Oe5f7] Nxf7! is the strong threat.} Ne4 26. Bxe7 Rcxe7 27. Qe3) 25... Rc8 {[%emt 0:00:13]} (25... Bxb5 $14 26. Qxb5 Nc6) 26. Na7 $18 {[%emt 0:02:49]} Rc7 {[%emt 0:00:02]} 27. f5 {[%emt 0:00:53]} (27. Qe3 $142 $1) 27... g5 $16 {[%emt 0:00:46]} 28. Bg3 {[%emt 0:00:02]} Bd6 {[%emt 0:00:17]} 29. Nb5 $2 {[%emt 0:01:03]} (29. h4 $16 {And now hxg5 would win.} gxh4 30. Bxh4) 29... Bxb5 $17 {[%emt 0:00:02]} 30. Qxb5 {[%emt 0:00:10]} Nc6 $1 {[%emt 0:01:21]} 31. Bf2 {[%emt 0:04:53]} (31. Nxc6 $17 {was called for.} bxc6 (31... Rxc6 32. Bxd6 Rxc1 33. Rxc1 $15) 32. Qd3) 31... Nxd4 $1 $19 {[%emt 0:02:47]} 32. Bxd4 {[%emt 0:00:02]} Rxc1 {[%emt 0:00:03]} (32... Rxe5 33. Qxa5 Re8 34. Bb6 $14 (34. Bxf6 Qxf6 35. Qxd5 Rd8 $17)) 33. Rxc1 {[%emt 0:00:02]} Bxe5 {[%emt 0:00:19]} 34. Bxe5 {[%emt 0:02:45]} Rxe5 {[%emt 0:00:02]} 35. Qxb7 {[%emt 0:00:08]} Kg7 {[%emt 0:00:52]} 36. Bd3 {[%emt 0:03:25]} Re3 {[%emt 0:01:15]} ({Better is} 36... Qe8 {...Re3 would now be deadly.} 37. Qc7 a4 (37... Re1+ 38. Rxe1 Qxe1+ 39. Kh2 $17) 38. bxa4 Re3) 37. Bb5 {[%emt 0:03:48]} (37. Bf1 $142) 37... Re7 {[%emt 0:00:44]} 38. Qa6 {[%emt 0:00:32] [#]} (38. Qc6 $17 {was necessary.}) 38... Qb8 $1 $19 {[%emt 0:00:25]} 39. Qxa5 {[%emt 0:00:52]} (39. Qc6 $142) 39... Qf4 {[%emt 0:00:31]} (39... g4 $142 40. Kh1 Qg3) 40. Qc3 {[%emt 0:00:27]} (40. Rc2 $142) 40... d4 $1 $19 {[%emt 0:00:04]} (40... Qxf5 41. Rf1 Qe6 42. Qg3 $11) 41. Qc2 {[%emt 0:00:37]} Re3 {[%emt 0:00:44]} 42. Rf1 {[%emt 0:00:15]} Qe5 {[%emt 0:00:30]} 43. Bd3 {[%emt 0:00:37] [#]} Nd5 {[%emt 0:00:42]} (43... Qg3 $1 $19 44. Ba6 d3) 44. Kh1 $2 {[%emt 0:00:36][%mdl 8192]} (44. f6+ $17 {was the crucial defense.} Nxf6 45. Rf5) 44... Nf4 $19 {[%emt 0:00:02]} 45. Bc4 {[%emt 0:00:34]} d3 {[%emt 0:00:13]} 46. Bxd3 {[%emt 0:00:30]} Nxd3 {[%emt 0:00:38]} 47. f6+ {[%emt 0:00:02]} Kh7 {[%emt 0:01:49]} 48. Qc4 {[%emt 0:00:04]} Qe6 {[%emt 0:00:14]} 49. Qc7 $2 {[%emt 0:01:07]} (49. Qxe6 Rxe6 50. Ra1) 49... Nf4 $19 {[%emt 0:00:16]} 50. Qc2+ {[%emt 0:00:29]} Qe4 $2 {[%emt 0:00:24]} (50... Kg8 {[%cal Of4e2] Threatens to win with ...Ne2!} 51. Rc1 Qxf6 (51... Ne2 $2 52. Qc8+ Qxc8 53. Rxc8+ Kh7 54. Rc7 $19)) 51. Qxe4+ $19 {[%emt 0:00:23]} Rxe4 {[%emt 0:00:01]} 52. a4 {[%emt 0:00:05]} Rb4 {[%emt 0:00:23]} (52... Kg6 53. a5 $19) 53. Rf3 {[%emt 0:00:32]} Kg6 {[%emt 0:00:16]} 54. Kh2 {[%emt 0:00:25]} Ne2 {[%emt 0:00:45]} (54... Kxf6 55. g3 $14) 55. a5 {[%emt 0:00:26]} Nd4 {[%emt 0:00:32]} 56. Rd3 {[%emt 0:00:39]} Nxb3 {[%emt 0:00:01]} 57. a6 {[%emt 0:00:04]} Nc5 {[%emt 0:00:13]} (57... Kxf6 58. a7 Ra4 59. Rxb3 $16) 58. a7 {[%emt 0:00:28]} Ra4 $1 {[%emt 0:00:08]} (58... Nxd3 $2 {too greedy.} 59. a8=Q $18 (59. a8=B $2 {perishes.} Ne5 $19)) 0-1

[Event "Bijnor Open 2024"]
[Site "Bijnor"]
[Date "2024.03.20"]
[Round "7.8"]
[White "Shreyash Singh"]
[Black "Sai Agni Jeevitesh, J."]
[Result "0-1"]
[ECO "A40"]
[WhiteElo "1807"]
[BlackElo "2285"]
[Annotator "TA"]
[PlyCount "80"]
[EventDate "2024.03.17"]
[EventCountry "IND"]
[SourceTitle "playchess.com"]
[Source "ChessBase"]
[SourceQuality "1"]
[TimeControl "5400+30"]

{[%evp 14,80,36,16,50,53,49,57,51,46,44,57,74,70,71,59,49,51,54,0,8,14,21,0,32,-15,-15,-22,17,12,5,-29,0,0,16,0,61,-63,-63,-62,-12,-60,-49,-45,-47,-29,-29,-30,0,-945,-448,-479,-470,-463,-451,-477,-469,-578,-558,-1233,-1225,-1045,-696,-29989,-29990,-29990,-713,-29997,-29998]} 1. d4 {[%emt 0:00:03]} e6 {[%emt 0:00:46]} 2. c4 {[%emt 0:01:18]} f5 {[%emt 0:00:33]} 3. a3 {[%emt 0:00:06]} Nf6 {[%emt 0:00:15]} 4. Nc3 {[%emt 0:00:05]} Be7 {[%emt 0:04:54]} 5. Nf3 {[%emt 0:00:32][%cal Bg1f3,Bf3g5,Bg5e6][%mdl 32]} b6 {[%emt 0:00:41]} 6. g3 {[%emt 0:00:15]} Bb7 {[%emt 0:00:01]} 7. Bg2 {[%emt 0:00:08]} O-O {[%emt 0:00:10]} 8. O-O {[%emt 0:00:06]} Qe8 {[%emt 0:00:59]} 9. Bf4 {[%emt 0:07:27]} d6 {[%emt 0:01:57]} 10. Ng5 {[%emt 0:09:30][%csl LRb7,LRe6] Prevents Ne4} Bxg2 {[%emt 0:01:22] White is slightly better.} 11. Kxg2 {[%emt 0:00:05]} Bd8 {[%emt 0:08:12]} 12. d5 {[%emt 0:05:38]} e5 {[%emt 0:02:55]} 13. Bd2 {[%emt 0:00:28]} Nbd7 {[%emt 0:00:49]} 14. Qc2 {[%emt 0:08:35]} Qg6 {[%emt 0:05:51]} 15. Ne6 {[%emt 0:00:58] Prevents Nc5} Rf7 {[%emt 0:00:24]} 16. b4 {[%emt 0:10:26] Dodges Nc5} (16. f4 $14) 16... Nf8 $11 {[%emt 0:01:24]} 17. Nxf8 {[%emt 0:07:58]} Rxf8 {[%emt 0:01:09]} 18. Rad1 {[%emt 0:03:12]} a5 {[%emt 0:03:28] [#]} 19. c5 {[%emt 0:04:06]} axb4 {[%emt 0:03:53]} 20. axb4 {[%emt 0:00:31]} h5 {[%emt 0:01:02]} 21. cxd6 {[%emt 0:01:24]} cxd6 {[%emt 0:00:17]} 22. Nb5 {[%emt 0:03:41]} Ne4 {[%emt 0:03:26]} (22... Nxd5 $2 23. Qc6 $18) 23. Be1 {[%emt 0:09:56]} h4 {[%emt 0:02:34]} 24. f3 {[%emt 0:03:32]} Nf6 {[%emt 0:00:21]} (24... Ng5 $11) 25. Bf2 {[%emt 0:04:42]} (25. Nxd6 Nh5 26. Nc4 hxg3 $15) (25. Qc6 $1 $14 Be7 26. Nxd6) 25... Nh5 $15 {[%emt 0:01:11] Threatens to win with ...hxg3.} 26. Rg1 {[%emt 0:01:11]} Nf4+ {[%emt 0:07:44]} (26... hxg3 $1 $15 27. hxg3 Bh4) 27. Kf1 {[%emt 0:00:38]} (27. Kh1 $11 {should be considered.} Nh3 28. Rg2) 27... Nh3 $1 {[%emt 0:00:12]} (27... hxg3 28. hxg3 Nh3 29. Rh1 Nxf2 30. Kxf2 $14) 28. Rg2 {[%emt 0:00:06]} Nxf2 {[%emt 0:00:44]} 29. Kxf2 {[%emt 0:00:06]} h3 $36 {[%emt 0:04:43][%mdl 2048] Black has some pressure.} 30. Rgg1 {[%emt 0:00:19]} e4 {[%emt 0:43:33]} 31. Ra1 $2 {[%emt 0:04:01][%mdl 8192] [#]} (31. f4 $11) 31... e3+ $1 {[%emt 0:00:00][%mdl 512]} 32. Kxe3 $19 {[%emt 0:00:17]} Rxa1 {[%emt 0:00:00]} 33. Rxa1 {[%emt 0:00:07]} Qe8+ {[%emt 0:00:00]} 34. Kf2 {[%emt 0:00:11]} Qxb5 {[%emt 0:00:00]} 35. Qb3 {[%emt 0:00:12]} Bf6 {[%emt 0:00:00]} 36. Ra7 {[%emt 0:00:04]} Re8 {[%emt 0:00:00]} 37. Qc2 {[%emt 0:00:20]} Qxd5 {[%emt 0:00:00] White must now prevent ...Qd4+.} 38. Qc7 {[%emt 0:00:18]} Qd4+ {[%emt 0:00:00]} 39. Ke1 {[%emt 0:00:06]} Qc3+ {[%emt 0:00:00]} (39... Qxb4+ $142 40. Kd1 Qd4+ 41. Ke1 Qg1+ 42. Kd2 Qe3+ (42... Qxh2 43. Qf7+ Kh7 44. Qh5+ Kg8 45. Qxe8+ Kh7 46. Qh5+ Kg8 47. Ra8+) 43. Kc2 Qxe2+ 44. Kc1 Qf1+ (44... Qxf3 $2 45. Qf7+ Kh7 46. Qxe8 $19) 45. Kc2 Re2+ (45... Qxf3 $2 46. Qf7+ Kh7 47. Qxe8 $19) 46. Kd3 Rf2+ (46... Qxf3+ {gets mated.} 47. Kc4 Rc2+ 48. Kb5 Qd5+ 49. Qc5 Rxc5+ 50. Ka6 Ra5+ 51. Kxb6 Bd8+ 52. Rc7 Qb5#) 47. Ke3 Qe2+ 48. Kf4 Rxf3#) 40. Kf2 {[%emt 0:00:05]} Qe3+ {[%emt 0:00:00] Weighted Error Value: White=0.91/Black=0.69.  Loses game:     	White=1     	---        Mistake:       	White=4     	Black=3      Inaccurate:     	White=2     	Black=4      OK:         	White=11    	Black=11     Best:        	White=1     	Black=2      Strong:       	---       	Black=1} 0-1

[Event "Bijnor Open 2024"]
[Site "Bijnor"]
[Date "2024.03.20"]
[Round "7.9"]
[White "Balkishan, A.."]
[Black "Ishan Ghosh"]
[Result "1-0"]
[ECO "A90"]
[WhiteElo "2108"]
[BlackElo "1768"]
[Annotator "RC"]
[PlyCount "63"]
[EventDate "2024.03.17"]
[EventCountry "IND"]
[SourceTitle "playchess.com"]
[Source "ChessBase"]
[SourceQuality "1"]
[TimeControl "5400+30"]

1. d4 {[%emt 0:01:33]} e6 {[%emt 0:00:21]} 2. c4 {[%emt 0:00:05]} f5 {[%emt 0:00:09]} 3. Nc3 {[%emt 0:00:11]} Nf6 {[%emt 0:00:39]} 4. Nf3 {[%emt 0:00:02]} d5 {[%emt 0:00:41]} 5. g3 {[%emt 0:00:04]} c6 {[%emt 0:00:38]} 6. Bg2 {[%emt 0:00:03]} Bd6 {[%emt 0:00:30]} 7. Bf4 {[%emt 0:00:04]} Bxf4 {[%emt 0:08:05]} 8. gxf4 {[%emt 0:00:04]} O-O {[%emt 0:01:05]} 9. e3 {[%emt 0:00:37]} Ne4 {[%emt 0:02:12]} 10. Qc2 {[%emt 0:00:37]} Bd7 {[%emt 0:04:07]} 11. Ne5 {[%emt 0:03:13]} Be8 {[%emt 0:04:08]} 12. Qb3 {[%emt 0:04:07]} Qe7 {[%emt 0:11:22]} 13. Bxe4 {[%emt 0:02:55]} fxe4 {[%emt 0:01:40]} 14. Rg1 {[%emt 0:00:22]} Bh5 {[%emt 0:07:38]} 15. Rg5 {[%emt 0:00:32]} g6 {[%emt 0:00:15]} 16. Kd2 {[%emt 0:02:55]} Kh8 {[%emt 0:03:34]} 17. Rag1 {[%emt 0:01:15]} Na6 {[%emt 0:03:24]} 18. Ne2 {[%emt 0:05:35]} Bxe2 {[%emt 0:04:25]} 19. Kxe2 {[%emt 0:00:09]} Rg8 {[%emt 0:08:51]} 20. h4 {[%emt 0:01:07]} Raf8 {[%emt 0:03:22]} 21. h5 {[%emt 0:04:47]} gxh5 {[%emt 0:03:44]} 22. Qa3 {[%emt 0:00:45]} Qe8 {[%emt 0:08:02]} 23. Qd6 {[%emt 0:02:48]} Rxg5 {[%emt 0:10:28]} 24. Rxg5 {[%emt 0:00:11]} Rg8 {[%emt 0:01:37]} 25. Qd8 {[%emt 0:01:33]} h6 {[%emt 0:04:48]} 26. Qf6+ {[%emt 0:00:05]} Kh7 {[%emt 0:00:23]} 27. Nf7 {[%emt 0:00:14]} Rxg5 {[%emt 0:03:10]} 28. Qxh6+ {[%emt 0:00:06]} Kg8 {[%emt 0:00:09]} 29. Nxg5 {[%emt 0:00:07]} h4 {[%emt 0:01:51]} 30. Nxe6 {[%emt 0:01:00]} Qe7 {[%emt 0:01:07]} 31. Qg6+ {[%emt 0:00:11]} Kh8 {[%emt 0:00:23]} 32. Ng5 {[%emt 0:00:12]} 1-0

[Event "Bijnor Open 2024"]
[Site "Bijnor"]
[Date "2024.03.20"]
[Round "7.10"]
[White "Shaurya Prabhakar"]
[Black "Sharma, Harish"]
[Result "0-1"]
[ECO "A90"]
[WhiteElo "1731"]
[BlackElo "1926"]
[Annotator "RC"]
[PlyCount "58"]
[EventDate "2024.03.17"]
[EventCountry "IND"]
[SourceTitle "playchess.com"]
[Source "ChessBase"]
[SourceQuality "1"]
[TimeControl "5400+30"]

1. d4 {[%emt 0:00:09]} e6 {[%emt 0:00:09]} 2. c4 {[%emt 0:01:08]} d5 {[%emt 0:00:09]} 3. Nf3 {[%emt 0:01:04]} c6 {[%emt 0:00:12]} 4. g3 {[%emt 0:00:56]} f5 {[%emt 0:01:22]} 5. Bg2 {[%emt 0:00:23]} Nf6 {[%emt 0:00:13]} 6. O-O {[%emt 0:00:14]} Bd6 {[%emt 0:00:19]} 7. b3 {[%emt 0:00:15]} Qe7 {[%emt 0:00:12]} 8. a4 {[%emt 0:00:26]} O-O {[%emt 0:00:09]} 9. Ba3 {[%emt 0:00:06]} Nbd7 {[%emt 0:00:34]} 10. Bxd6 {[%emt 0:01:08]} Qxd6 {[%emt 0:00:04]} 11. Na3 {[%emt 0:00:43]} Ne4 {[%emt 0:00:21]} 12. Qd3 {[%emt 0:03:16]} b6 {[%emt 0:01:02]} 13. cxd5 {[%emt 0:04:07]} exd5 {[%emt 0:00:10]} 14. Nd2 {[%emt 0:04:53]} a5 {[%emt 0:01:17]} 15. f3 {[%emt 0:02:14]} Ba6 {[%emt 0:00:50]} 16. Qc2 {[%emt 0:00:19]} Nxd2 {[%emt 0:01:25]} 17. Qxd2 {[%emt 0:00:03]} f4 {[%emt 0:00:33]} 18. gxf4 {[%emt 0:02:23]} Rae8 {[%emt 0:00:11]} 19. Rfe1 {[%emt 0:00:56]} Rxf4 {[%emt 0:00:08]} 20. e4 {[%emt 0:07:43]} dxe4 {[%emt 0:02:31]} 21. Rxe4 {[%emt 0:00:17]} Rexe4 {[%emt 0:00:44]} 22. fxe4 {[%emt 0:00:05]} Rh4 {[%emt 0:00:08]} 23. h3 {[%emt 0:01:12]} Qg3 {[%emt 0:01:07]} 24. b4 {[%emt 0:17:39]} axb4 {[%emt 0:05:06]} 25. Qxb4 {[%emt 0:01:29]} Rxh3 {[%emt 0:01:11]} 26. Qd2 {[%emt 0:05:05]} Qh2+ {[%emt 0:01:41]} 27. Kf2 {[%emt 0:00:18]} Rg3 {[%emt 0:00:11]} 28. Rg1 {[%emt 0:02:25]} Rxa3 {[%emt 0:00:38]} 29. Re1 {[%emt 0:03:21]} Nf6 {[%emt 0:01:12]} 0-1

[Event "Bijnor Open 2024"]
[Site "Bijnor"]
[Date "2024.03.20"]
[Round "8.1"]
[White "Laxman, R.R."]
[Black "Neelash Saha"]
[Result "1/2-1/2"]
[ECO "E08"]
[WhiteElo "2331"]
[BlackElo "2463"]
[Annotator "TA"]
[PlyCount "26"]
[EventDate "2024.03.17"]
[EventCountry "IND"]
[SourceTitle "playchess.com"]
[Source "ChessBase"]
[SourceQuality "1"]
[TimeControl "5400+30"]

{[%evp 21,26,0,20,0,22,0,7]} 1. d4 {[%emt 0:00:11]} Nf6 {[%emt 0:00:09]} 2. Nf3 {[%emt 0:00:40]} e6 {[%emt 0:00:04]} 3. c4 {[%emt 0:00:07]} d5 {[%emt 0:00:05]} 4. g3 {[%emt 0:00:07]} Bb4+ {[%emt 0:00:03]} 5. Bd2 {[%emt 0:00:09]} Be7 {[%emt 0:00:03]} 6. Bg2 {[%emt 0:00:13]} O-O {[%emt 0:00:16]} 7. O-O {[%emt 0:00:22]} Nbd7 {[%emt 0:00:10]} 8. Qc2 {[%emt 0:00:15]} c6 {[%emt 0:00:05]} 9. Rd1 {[%emt 0:00:13]} b6 {[%emt 0:00:20]} 10. Bf4 {[%emt 0:00:07]} Nh5 {[%emt 0:00:09]} 11. Bd2 {[%emt 0:00:22]} Nhf6 {[%emt 0:00:06] The position is equal.} 12. Bf4 {[%emt 0:00:03]} Nh5 {[%emt 0:00:04]} 13. Bd2 {[%emt 0:00:03]} Nhf6 {[%emt 0:00:05] Not much happened in this game.   Weighted Error Value: White=0.21 (precise) /Black=0.00 (flawless) .  OK:         	---       	Black=2} 1/2-1/2